bitfinex/quotes_BTCUSD_20241111
["timestamp","ask_amount","ask_price","bid_price","bid_amount"]
[1731327790589,0.000691,81967.0,81940.0,1.21829504]
[1731327790815,0.000691,81967.0,81940.0,1.21529504]
[1731327791021,0.000691,81967.0,81940.0,1.17887301]
[1731327791430,0.000691,81967.0,81940.0,1.18087301]
[1731327791789,0.000691,81967.0,81940.0,1.17787301]
[1731327792165,0.000691,81967.0,81940.0,1.17387301]
[1731327792297,0.000691,81967.0,81953.0,0.01]
[1731327792512,0.000691,81967.0,81966.0,0.122001]
[1731327792721,0.000691,81967.0,81966.0,0.27641362]
[1731327793080,0.000691,81967.0,81966.0,0.64242362]
[1731327793447,0.000691,81967.0,81966.0,0.66845688]
[1731327793788,0.000691,81967.0,81966.0,1.0208343]
[1731327794017,0.008691,81967.0,81966.0,0.76945688]
[1731327794366,0.008691,81967.0,81966.0,0.40931357]
[1731327794563,0.122691,81967.0,81966.0,0.40831357]
[1731327794786,0.257491,81967.0,81966.0,0.40931357]
[1731327794992,1.88343321,81967.0,81966.0,0.05298031]
[1731327795213,0.122022,81952.0,81951.0,0.18334607]
[1731327795875,1.5,81952.0,81932.0,0.18334607]
[1731327796100,1.5,81952.0,81939.0,0.122041]
[1731327796246,1.5,81952.0,81944.0,0.18334607]
[1731327796595,1.630022,81952.0,81951.0,0.001]
[1731327797238,1.644022,81952.0,81951.0,0.001]
[1731327797471,1.76996421,81952.0,81951.0,0.001]
[1731327797671,1.76996421,81952.0,81942.0,0.001]
[1731327797672,0.122036,81943.0,81942.0,0.001]
[1731327797834,0.122036,81943.0,81942.0,0.002]
[1731327798051,1.58994221,81952.0,81942.0,0.001]
[1731327798052,0.122027,81949.0,81942.0,0.001]
[1731327798415,1.586022,81952.0,81951.0,0.001]
[1731327798847,1.594022,81952.0,81951.0,0.002]
[1731327799195,1.472,81952.0,81951.0,0.002]
[1731327799420,0.014,81952.0,81951.0,0.123024]
[1731327799627,0.122004,81964.0,81954.0,0.122019]
[1731327799821,0.122007,81963.0,81952.0,0.122021]
[1731327800036,1.5,81966.0,81952.0,0.122022]
[1731327800248,0.244009,81964.0,81952.0,0.122022]
[1731327800445,1.5,81966.0,81953.0,0.18334607]
[1731327800707,0.122006,81963.0,81954.0,0.122019]
[1731327800910,0.244009,81964.0,81953.0,0.18334607]
[1731327801131,1.5,81966.0,81951.0,0.001]
[1731327801372,0.37439942,81952.0,81951.0,0.001]
[1731327801517,0.122037,81942.0,81932.0,0.18334607]
[1731327801893,1.82767921,81942.0,81932.0,0.18334607]
[1731327802107,1.75254221,81942.0,81932.0,0.18334607]
[1731327802333,1.75254221,81942.0,81913.0,0.18334607]
[1731327802334,0.122049,81934.0,81933.0,0.18334607]
[1731327802549,0.122064,81924.0,81913.0,0.18334607]
[1731327802767,0.244104,81932.0,81916.0,0.122075]
[1731327802971,0.25237742,81934.0,81913.0,0.30542507]
[1731327802972,1.622064,81924.0,81913.0,0.30542507]
[1731327803176,1.622064,81924.0,81913.0,0.18334607]
[1731327803442,1.5,81924.0,81913.0,0.18334607]
[1731327803648,0.122077,81916.0,81913.0,0.18334607]
[1731327803856,1.62594221,81924.0,81913.0,0.18334607]
[1731327804069,1.62594221,81924.0,81904.0,0.30544007]
[1731327804070,0.12594221,81923.0,81904.0,0.30544007]
[1731327804285,0.122082,81912.0,81904.0,0.18334607]
[1731327804490,0.24802421,81912.0,81904.0,0.18334607]
[1731327805056,1.74802421,81912.0,81904.0,0.18334607]
[1731327806042,1.76202421,81912.0,81904.0,0.18334607]
[1731327806254,1.76902421,81912.0,81904.0,0.18334607]
[1731327806482,1.76202421,81912.0,81904.0,0.18334607]
[1731327806902,1.77602421,81912.0,81904.0,0.18334607]
[1731327807126,1.76202421,81912.0,81904.0,0.18334607]
[1731327807540,1.77602421,81912.0,81904.0,0.18334607]
[1731327807959,1.62594221,81912.0,81905.0,0.122091]
[1731327808175,1.76202421,81912.0,81904.0,0.18334607]
[1731327808384,1.63994221,81912.0,81904.0,0.18334607]
[1731327808625,1.62594221,81912.0,81905.0,0.01633196]
[1731327808867,1.5,81912.0,81906.0,0.12209]
[1731327809068,1.514,81912.0,81911.0,0.122927]
[1731327809283,1.528,81912.0,81911.0,0.000844]
[1731327809493,1.528,81912.0,81911.0,0.122927]
[1731327809494,1.5,81912.0,81911.0,0.122927]
[1731327809702,0.0803,81922.0,81914.0,0.122078]
[1731327809920,0.028,81912.0,81911.0,0.000844]
[1731327810589,0.028,81912.0,81911.0,0.122927]
[1731327811035,0.014,81912.0,81911.0,0.000844]
[1731327812269,0.028,81912.0,81911.0,0.000844]
[1731327813091,0.27602421,81912.0,81911.0,0.000844]
[1731327813985,0.27602421,81912.0,81891.0,0.1]
[1731327814216,0.27602421,81912.0,81892.0,0.18334607]
[1731327814217,0.12211,81893.0,81892.0,0.18334607]
[1731327814618,1.5,81893.0,81881.0,0.18334607]
[1731327814820,0.37449042,81891.0,81890.0,0.18334607]
[1731327815182,0.122122,81885.0,81881.0,0.18334607]
[1731327815404,0.25237742,81891.0,81881.0,0.18334607]
[1731327815405,0.244236,81888.0,81881.0,0.18334607]
[1731327815614,0.12594221,81887.0,81874.0,0.000847]
[1731327815868,0.12594221,81887.0,81874.0,0.03039227]
[1731327816091,0.12594221,81887.0,81874.0,0.000847]
[1731327816092,0.244259,81880.0,81874.0,0.000847]
[1731327816379,0.25237742,81881.0,81874.0,0.000847]
[1731327816593,0.014,81891.0,81888.0,0.122117]
[1731327816821,0.014,81891.0,81874.0,0.12923201]
[1731327816822,0.18334607,81890.0,81885.0,0.122121]
[1731327817032,0.014,81891.0,81888.0,0.122117]
[1731327817252,0.014,81891.0,81876.0,0.122135]
[1731327817469,1.5,81896.0,81882.0,0.122125]
[1731327817695,1.5,81896.0,81883.0,0.00244233]
[1731327817929,0.014,81891.0,81890.0,0.122115]
[1731327818144,0.0547,81917.0,81877.0,0.15212695]
[1731327818145,0.42753907,81903.0,81885.0,0.00244223]
[1731327818353,1.5,81900.0,81880.0,0.30547407]
[1731327818558,0.014,81891.0,81887.0,0.122119]
[1731327818775,0.014,81891.0,81890.0,0.122115]
[1731327818977,0.244184,81906.0,81890.0,0.122115]
[1731327819195,0.244201,81900.0,81881.0,0.12594221]
[1731327819404,0.014,81891.0,81889.0,0.30546107]
[1731327819627,0.014,81891.0,81890.0,0.122115]
[1731327819821,1.514,81903.0,81876.0,0.1]
[1731327820047,0.014,81891.0,81890.0,0.000843]
[1731327820280,0.122104,81897.0,81890.0,0.000843]
[1731327820511,1.5,81903.0,81890.0,0.000843]
[1731327820705,0.014,81891.0,81890.0,0.000843]
[1731327822468,0.40249042,81891.0,81890.0,0.000843]
[1731327822699,0.52843263,81891.0,81890.0,0.000843]
[1731327823074,2.02843263,81891.0,81890.0,0.000843]
[1731327823252,2.01443263,81891.0,81890.0,0.000843]
[1731327824120,2.02843263,81891.0,81890.0,0.000843]
[1731327824323,2.01443263,81891.0,81890.0,0.000843]
[1731327824522,1.87831963,81891.0,81880.0,0.18334607]
[1731327824726,0.122128,81881.0,81880.0,0.18334607]
[1731327825135,0.122128,81881.0,81870.0,0.18334607]
[1731327825136,0.122137,81875.0,81870.0,0.18334607]
[1731327825535,0.122135,81876.0,81870.0,0.18334607]
[1731327825718,0.0768,81885.0,81872.0,0.122141]
[1731327825942,0.244254,81882.0,81870.0,0.18334607]
[1731327826376,0.122137,81875.0,81870.0,0.18334607]
[1731327827707,0.006,81875.0,81870.0,0.18334607]
[1731327827885,0.006,81875.0,81872.0,0.122141]
[1731327828022,0.006,81875.0,81863.0,0.122154]
[1731327828223,0.128137,81875.0,81867.0,0.122148]
[1731327828425,0.128137,81875.0,81863.0,0.122154]
[1731327828426,0.12827483,81875.0,81868.0,0.122147]
[1731327828846,0.00613783,81875.0,81871.0,0.122142]
[1731327829094,0.00613783,81875.0,81869.0,0.18334607]
[1731327829095,0.00613783,81875.0,81874.0,0.122985]
[1731327829494,0.00613783,81875.0,81874.0,0.24892721]
[1731327830639,0.00613783,81875.0,81874.0,0.35136947]
[1731327830800,0.00613783,81875.0,81874.0,0.42882721]
[1731327831559,0.00113783,81875.0,81874.0,0.42882721]
[1731327831994,0.00113783,81875.0,81874.0,0.50885323]
[1731327832419,0.00113783,81875.0,81874.0,0.55675323]
[1731327832613,0.18334607,81903.0,81883.0,0.005]
[1731327832863,0.18334607,81903.0,81902.0,0.122097]
[1731327833018,0.18334607,81903.0,81902.0,0.222097]
[1731327833190,0.18334607,81921.0,81911.0,0.122083]
[1731327833430,0.305,81925.0,81924.0,0.122064]
[1731327833569,0.18334607,81945.0,81899.0,0.0849]
[1731327833570,0.18334607,81945.0,81922.0,0.244134]
[1731327833769,0.18334607,81945.0,81907.0,0.005]
[1731327833770,0.18334607,81945.0,81923.0,0.00244089]
[1731327834007,0.122036,81943.0,81935.0,0.122047]
[1731327834375,0.122036,81943.0,81932.0,0.122051]
[1731327834376,0.18334607,81945.0,81932.0,0.122051]
[1731327834521,0.122024,81951.0,81936.0,0.122046]
[1731327834749,0.0768,81957.0,81928.0,0.122058]
[1731327834750,0.122043,81939.0,81928.0,0.122058]
[1731327834945,1.5,81942.0,81922.0,0.18334607]
[1731327835153,1.5,81942.0,81931.0,0.18334607]
[1731327835380,1.5,81942.0,81941.0,0.122039]
[1731327835588,1.5,81942.0,81925.0,0.1]
[1731327835859,1.5,81942.0,81937.0,0.122044]
[1731327836053,0.014,81939.0,81932.0,0.122051]
[1731327836171,0.014,81939.0,81925.0,0.1]
[1731327836172,0.122046,81936.0,81935.0,0.001]
[1731327836396,0.014,81939.0,81919.0,0.1]
[1731327836397,0.01644094,81939.0,81919.0,0.1]
[1731327836617,0.014,81939.0,81932.0,0.122051]
[1731327836815,0.014,81939.0,81927.0,0.18334607]
[1731327836816,0.014,81939.0,81936.0,0.122046]
[1731327837095,0.014,81939.0,81938.0,0.122043]
[1731327837320,0.014,81942.0,81941.0,0.122039]
[1731327837536,0.028,81942.0,81941.0,0.122039]
[1731327837760,0.014,81942.0,81941.0,0.122039]
[1731327837993,0.001686,81952.0,81941.0,0.122039]
[1731327838215,0.245732,81952.0,81937.0,0.0244093]
[1731327838433,0.245732,81952.0,81936.0,0.001]
[1731327838434,0.011,81939.0,81936.0,0.001]
[1731327838659,0.011,81939.0,81938.0,0.18334607]
[1731327838885,0.011,81939.0,81936.0,0.001]
[1731327838886,0.00244094,81949.0,81936.0,0.001]
[1731327839163,0.122044,81937.0,81936.0,0.001]
[1731327839373,0.122055,81931.0,81920.0,0.12594221]
[1731327839592,0.366169,81929.0,81928.0,0.18334607]
[1731327839825,0.244092,81936.0,81909.0,0.28334607]
[1731327840038,0.122065,81924.0,81912.0,0.122082]
[1731327840480,0.122065,81924.0,81909.0,0.40543207]
[1731327840481,0.18334607,81936.0,81909.0,0.28334607]
[1731327840729,0.18334607,81936.0,81900.0,0.18334607]
[1731327840730,0.244177,81908.0,81900.0,0.18334607]
[1731327840959,0.122083,81911.0,81910.0,0.18334607]
[1731327841212,0.00244094,81924.0,81900.0,0.18334607]
[1731327841213,0.122079,81914.0,81900.0,0.18334607]
[1731327841430,0.244152,81916.0,81901.0,0.01833461]
[1731327841692,0.18750528,81937.0,81910.0,0.122085]
[1731327841875,0.18334607,81927.0,81903.0,0.122095]
[1731327842138,0.18334607,81927.0,81900.0,0.18334607]
[1731327842139,0.18334607,81937.0,81915.0,0.122076]
[1731327842350,0.00244094,81936.0,81919.0,0.122071]
[1731327842568,0.00244094,81936.0,81911.0,0.30928828]
[1731327842569,0.014,81936.0,81931.0,0.122053]
[1731327842824,0.014,81936.0,81921.0,0.18334607]
[1731327842825,0.014,81936.0,81927.0,0.122058]
[1731327843026,0.18334607,81948.0,81922.0,0.1]
[1731327843027,0.122056,81930.0,81922.0,0.1]
[1731327843239,0.00244094,81942.0,81906.0,0.25237742]
[1731327843240,0.001688,81920.0,81911.0,0.18334607]
[1731327843446,0.122082,81912.0,81911.0,0.18334607]
[1731327843880,0.122082,81912.0,81900.0,0.18334607]
[1731327843881,0.122071,81919.0,81900.0,0.18334607]
[1731327844078,0.122087,81909.0,81901.0,0.122098]
[1731327844319,0.122085,81910.0,81901.0,0.122098]
[1731327844522,0.015688,81920.0,81901.0,0.122098]
[1731327844672,1.5,81908.0,81901.0,0.122098]
[1731327844868,1.5,81908.0,81900.0,0.18334607]
[1731327845099,1.744179,81908.0,81900.0,0.18334607]
[1731327845310,1.744179,81908.0,81885.0,0.122121]
[1731327845311,1.5,81908.0,81885.0,0.122121]
[1731327845549,0.12211,81893.0,81892.0,0.18334607]
[1731327846070,0.12211,81893.0,81874.0,0.000847]
[1731327846071,0.00244094,81894.0,81874.0,0.000847]
[1731327846312,0.00244094,81894.0,81877.0,0.122133]
[1731327846313,0.122117,81889.0,81877.0,0.122133]
[1731327846530,1.50244094,81888.0,81874.0,0.000847]
[1731327846721,1.50244094,81888.0,81878.0,0.30547707]
[1731327846722,1.5,81888.0,81878.0,0.30547707]
[1731327846962,1.622118,81888.0,81875.0,0.122137]
[1731327847174,0.244239,81887.0,81877.0,0.122134]
[1731327847411,0.122123,81884.0,81883.0,0.003]
[1731327847619,0.12213,81880.0,81874.0,0.000847]
[1731327847845,0.00244094,81884.0,81874.0,0.000847]
[1731327848073,0.122134,81878.0,81874.0,0.000847]
[1731327848282,0.37451442,81875.0,81874.0,0.000847]
[1731327848523,0.50045663,81875.0,81874.0,0.000847]
[1731327848760,0.122156,81862.0,81861.0,0.18334607]
[1731327849402,0.122156,81862.0,81860.0,0.001382]
[1731327849403,0.122158,81861.0,81860.0,0.001382]
[1731327849624,0.12459894,81861.0,81860.0,0.001382]
[1731327850523,0.25054115,81861.0,81860.0,0.001382]
[1731327850701,0.25954115,81861.0,81860.0,0.001382]
[1731327850948,0.26754115,81861.0,81860.0,0.001382]
[1731327852037,1.64159894,81861.0,81860.0,0.001382]
[1731327852254,1.639158,81861.0,81860.0,0.001382]
[1731327852479,1.517,81861.0,81860.0,0.001382]
[1731327852701,1.639158,81861.0,81860.0,0.001382]
[1731327852919,1.517,81861.0,81860.0,0.001382]
[1731327853783,0.017,81861.0,81860.0,0.001382]
[1731327855645,0.017,81861.0,81860.0,0.01376402]
[1731327855853,0.017,81861.0,81860.0,0.001382]
[1731327856354,0.017,81861.0,81860.0,0.123541]
[1731327856737,0.017,81861.0,81860.0,0.50248321]
[1731327856953,0.18334607,81888.0,81887.0,0.122119]
[1731327857163,0.18334607,81888.0,81887.0,0.24806121]
[1731327857299,0.25,81919.0,81889.0,0.122116]
[1731327857526,0.25406542,81931.0,81906.0,0.122091]
[1731327857527,1.50244094,81918.0,81906.0,0.122091]
[1731327857736,0.18334607,81915.0,81892.0,0.1]
[1731327857932,0.18334607,81915.0,81904.0,0.122093]
[1731327858145,0.25237742,81907.0,81876.0,0.0762]
[1731327858366,0.122098,81902.0,81898.0,0.18334607]
[1731327858570,0.244185,81905.0,81889.0,0.30546107]
[1731327858767,0.00244094,81904.0,81891.0,0.122112]
[1731327858998,0.00244094,81906.0,81890.0,0.18334607]
[1731327859214,0.12594221,81905.0,81891.0,0.18334607]
[1731327859375,0.00244094,81904.0,81891.0,0.18334607]
[1731327859759,0.37013321,81903.0,81891.0,0.18334607]
[1731327859988,0.00244094,81902.0,81891.0,0.18434607]
[1731327860190,0.122096,81903.0,81891.0,0.001]
[1731327860431,0.25237742,81899.0,81891.0,0.002]
[1731327860635,0.00244094,81898.0,81891.0,0.002]
[1731327860860,0.00244094,81898.0,81891.0,0.001]
[1731327860861,0.12211,81894.0,81891.0,0.001]
[1731327861091,0.122112,81892.0,81891.0,0.002]
[1731327861315,0.00244094,81893.0,81891.0,0.002]
[1731327861531,0.122112,81892.0,81891.0,0.002]
[1731327861706,1.622112,81892.0,81891.0,0.001]
[1731327861931,1.670982,81892.0,81891.0,0.002]
[1731327862130,1.670982,81892.0,81891.0,0.001]
[1731327862365,0.244229,81891.0,81878.0,0.18334607]
[1731327862495,0.244233,81889.0,81878.0,0.18334607]
[1731327862696,0.244244,81885.0,81868.0,0.18334607]
[1731327862898,0.25,81877.0,81868.0,0.18334607]
[1731327863099,0.00244094,81876.0,81868.0,0.18334607]
[1731327863303,1.50244094,81876.0,81868.0,0.18334607]
[1731327863519,1.5,81876.0,81868.0,0.18334607]
[1731327863722,0.00244094,81875.0,81866.0,0.12215]
[1731327863895,0.00244094,81875.0,81864.0,0.122153]
[1731327864082,0.00244094,81875.0,81865.0,0.122151]
[1731327864546,0.00244094,81875.0,81866.0,0.122149]
[1731327864763,0.00244094,81875.0,81860.0,0.18472807]
[1731327865199,0.122138,81874.0,81863.0,0.122155]
[1731327865406,0.12458094,81873.0,81863.0,0.122155]
[1731327865598,0.12458094,81873.0,81860.0,0.001382]
[1731327865599,0.244286,81871.0,81860.0,0.001382]
[1731327865871,0.43334607,81875.0,81861.0,0.18334607]
[1731327865872,0.122154,81864.0,81861.0,0.18334607]
[1731327866104,0.12838315,81870.0,81861.0,0.18334607]
[1731327866105,0.00244094,81863.0,81861.0,0.18334607]
[1731327866304,1.5,81863.0,81862.0,0.18334607]
[1731327866537,1.5,81863.0,81860.0,0.001382]
[1731327867097,1.5,81863.0,81862.0,0.122156]
[1731327867329,1.5,81863.0,81860.0,0.123541]
[1731327867330,1.5,81863.0,81860.0,0.001382]
[1731327867531,1.5,81863.0,81862.0,0.122156]
[1731327868105,1.5,81863.0,81861.0,0.122157]
[1731327868324,1.5,81863.0,81860.0,0.001382]
[1731327868511,0.122158,81861.0,81860.0,0.001382]
[1731327868713,0.50047763,81861.0,81860.0,0.001382]
[1731327869154,0.24810021,81861.0,81860.0,0.001382]
[1731327869373,0.50291857,81861.0,81860.0,0.001382]
[1731327869635,0.122167,81855.0,81854.0,0.0002732]
[1731327869862,1.75055015,81855.0,81854.0,0.0002732]
[1731327870078,1.99810921,81855.0,81854.0,0.0002732]
[1731327871803,1.63994221,81855.0,81854.0,0.0002732]
[1731327872010,0.028,81855.0,81854.0,0.1224412]
[1731327872623,0.25,81862.0,81854.0,0.0002732]
[1731327872847,0.028,81855.0,81854.0,0.1224412]
[1731327873062,0.028,81855.0,81854.0,0.0002732]
[1731327873319,0.014,81855.0,81854.0,0.0002732]
[1731327873514,0.136167,81855.0,81854.0,0.0002732]
[1731327873756,0.15260794,81855.0,81854.0,0.0002732]
[1731327873955,1.65260794,81855.0,81854.0,0.0002732]
[1731327874215,1.636167,81855.0,81854.0,0.0002732]
[1731327874651,1.650167,81855.0,81854.0,0.0002732]
[1731327874872,1.636167,81855.0,81854.0,0.0002732]
[1731327875269,1.77610921,81855.0,81854.0,0.0002732]
[1731327875493,1.76210921,81855.0,81854.0,0.0002732]
[1731327875701,1.77610921,81855.0,81854.0,0.0002732]
[1731327875919,1.74810921,81855.0,81854.0,0.0002732]
[1731327876126,1.76210921,81855.0,81854.0,0.0002732]
[1731327876347,1.76210921,81855.0,81831.0,0.001382]
[1731327876348,0.25,81834.0,81831.0,0.001382]
[1731327876482,0.12838315,81833.0,81831.0,0.001382]
[1731327876695,0.00244094,81833.0,81831.0,0.001382]
[1731327876899,1.5,81832.0,81831.0,0.001382]
[1731327877324,1.5,81832.0,81831.0,0.123585]
[1731327877524,1.5,81832.0,81831.0,0.15441631]
[1731327877723,0.25,81854.0,81836.0,0.122195]
[1731327877945,0.18334607,81844.0,81838.0,0.122191]
[1731327878127,0.244343,81852.0,81836.0,0.122195]
[1731327878128,0.00244094,81843.0,81836.0,0.122195]
[1731327878336,0.122181,81846.0,81836.0,0.122195]
[1731327878337,0.00244094,81850.0,81837.0,0.18334607]
[1731327878538,0.122176,81849.0,81840.0,0.122188]
[1731327878795,0.12838315,81850.0,81840.0,0.122188]
[1731327878796,0.00244094,81848.0,81840.0,0.122188]
[1731327879006,0.00244094,81848.0,81844.0,0.122182]
[1731327879240,0.00244094,81853.0,81848.0,0.122177]
[1731327879454,0.25,81854.0,81843.0,0.122184]
[1731327879455,0.00244094,81852.0,81843.0,0.122184]
[1731327879686,0.00244094,81852.0,81850.0,0.122173]
[1731327879941,0.00244094,81852.0,81831.0,0.001382]
[1731327879942,0.122201,81832.0,81831.0,0.001382]
[1731327880128,0.25058415,81832.0,81831.0,0.001382]
[1731327880557,1.75058415,81832.0,81831.0,0.001382]
[1731327880758,1.99814321,81832.0,81831.0,0.001382]
[1731327881947,2.11214321,81832.0,81831.0,0.001382]
[1731327882168,2.11214321,81832.0,81818.0,0.301382]
[1731327882169,0.372221,81819.0,81818.0,0.301382]
[1731327882380,0.25,81823.0,81818.0,0.301382]
[1731327882531,0.25244094,81823.0,81818.0,0.301382]
[1731327882958,0.25244094,81823.0,81818.0,0.423603]
[1731327883163,0.25244094,81823.0,81818.0,0.423604]
[1731327883387,0.25244094,81823.0,81818.0,0.301382]
[1731327883610,0.122221,81819.0,81818.0,0.301382]
[1731327883825,0.12466194,81819.0,81818.0,0.301382]
[1731327884079,0.00244094,81819.0,81818.0,0.301382]
[1731327884453,0.00244094,81822.0,81819.0,0.122221]
[1731327884708,0.25,81823.0,81822.0,0.122216]
[1731327884709,0.014,81823.0,81822.0,0.122216]
[1731327884925,0.25,81843.0,81822.0,0.07914421]
[1731327885103,0.16029158,81836.0,81834.0,0.122197]
[1731327885304,0.16029158,81836.0,81835.0,0.122197]
[1731327885464,0.00244094,81842.0,81835.0,0.122197]
[1731327885864,0.18578701,81844.0,81830.0,0.122204]
[1731327886076,0.00244094,81844.0,81839.0,0.12219]
[1731327886282,0.00244094,81850.0,81830.0,0.01833461]
[1731327886640,0.00244094,81850.0,81831.0,0.00244377]
[1731327886889,0.25,81852.0,81850.0,0.122174]
[1731327887021,0.25244094,81852.0,81846.0,0.122179]
[1731327887233,0.25244094,81852.0,81845.0,0.025]
[1731327887640,0.25244094,81852.0,81846.0,0.12218]
[1731327887842,0.00244094,81852.0,81845.0,0.025]
[1731327888070,0.014,81852.0,81851.0,0.122173]
[1731327888282,0.25,81858.0,81851.0,0.122173]
[1731327888542,0.00244094,81857.0,81851.0,0.122171]
[1731327888756,0.014,81852.0,81851.0,0.122171]
[1731327888975,0.25244094,81858.0,81854.0,0.122168]
[1731327889184,0.00244094,81857.0,81854.0,0.122168]
[1731327889391,0.00244094,81857.0,81845.0,0.025]
[1731327889392,0.18334607,81855.0,81845.0,0.025]
[1731327889629,0.12218,81846.0,81845.0,0.025]
[1731327889797,0.24434,81853.0,81845.0,0.025]
[1731327890032,0.12838315,81854.0,81846.0,0.000844]
[1731327890033,0.12218,81847.0,81846.0,0.000844]
[1731327890694,0.122176,81849.0,81846.0,0.000844]
[1731327890901,0.00244094,81848.0,81846.0,0.000844]
[1731327891491,0.009,81847.0,81846.0,0.000844]
[1731327891655,0.00244094,81848.0,81846.0,0.000844]
[1731327891849,0.00244094,81851.0,81846.0,0.000844]
[1731327892078,0.014,81849.0,81846.0,0.000844]
[1731327892293,0.00244094,81848.0,81846.0,0.000844]
[1731327892499,0.122179,81847.0,81846.0,0.000844]
[1731327892708,0.009,81847.0,81846.0,0.000844]
[1731327893126,0.00244094,81848.0,81846.0,0.000844]
[1731327893334,0.122175,81850.0,81846.0,0.000844]
[1731327893537,0.018,81848.0,81846.0,0.000844]
[1731327893789,0.00244094,81847.0,81846.0,0.000844]
[1731327893949,0.00224094,81847.0,81846.0,0.000844]
[1731327894101,0.13341994,81847.0,81846.0,0.000844]
[1731327894317,0.12441994,81847.0,81846.0,0.000844]
[1731327894524,0.122179,81847.0,81846.0,0.000844]
[1731327894759,0.12441994,81847.0,81846.0,0.000844]
[1731327895177,0.12218,81846.0,81845.0,0.017844]
[1731327896464,1.62218,81846.0,81845.0,0.017844]
[1731327896885,1.75612221,81846.0,81845.0,0.017844]
[1731327897090,2.45582221,81846.0,81845.0,0.017844]
[1731327897951,2.45282221,81846.0,81845.0,0.017844]
[1731327898169,2.55782221,81846.0,81845.0,0.017844]
[1731327898397,0.25,81832.0,81818.0,0.301382]
[1731327898691,0.122204,81830.0,81818.0,0.301382]
[1731327898891,0.00224094,81831.0,81818.0,0.301382]
[1731327899090,1.62594221,81830.0,81818.0,0.301382]
[1731327899335,0.122218,81821.0,81818.0,0.301382]
[1731327899521,0.00224094,81822.0,81818.0,0.301382]
[1731327899752,0.12445794,81822.0,81818.0,0.301382]
[1731327899963,0.12222,81820.0,81818.0,0.301382]
[1731327900396,0.122213,81825.0,81818.0,0.301382]
[1731327900595,0.244418,81827.0,81818.0,0.301382]
[1731327900937,0.12818315,81826.0,81820.0,0.122218]
[1731327901164,0.122216,81822.0,81818.0,0.301382]
[1731327901376,0.00224094,81821.0,81818.0,0.301382]
[1731327901793,0.12445594,81823.0,81818.0,0.301382]
[1731327902036,0.00224094,81823.0,81818.0,0.301382]
[1731327902206,0.122213,81824.0,81818.0,0.301382]
[1731327902458,0.00224094,81825.0,81818.0,0.301382]
[1731327902672,0.372221,81819.0,81818.0,0.301382]
[1731327902901,0.37594221,81819.0,81818.0,0.301382]
[1731327903144,0.49816321,81819.0,81818.0,0.301382]
[1731327903576,0.37594221,81819.0,81818.0,0.301382]
[1731327903791,0.25,81826.0,81818.0,0.3316584]
[1731327903958,0.00224094,81825.0,81818.0,0.3316584]
[1731327904156,0.37594221,81826.0,81818.0,0.4538794]
[1731327904157,0.014,81819.0,81818.0,0.4538794]
[1731327904377,0.27490061,81835.0,81830.0,0.122204]
[1731327904533,0.18334607,81831.0,81830.0,0.122204]
[1731327904761,0.12594221,81834.0,81826.0,0.122209]
[1731327904762,0.12594221,81834.0,81829.0,0.122205]
[1731327904952,0.25,81835.0,81827.0,0.122209]
[1731327905193,0.00224094,81834.0,81833.0,0.1222]
[1731327905397,0.25,81835.0,81834.0,0.122198]
[1731327905592,0.25,81835.0,81833.0,0.2444]
[1731327905792,0.25,81835.0,81834.0,0.122198]
[1731327906007,0.25,81844.0,81843.0,0.122185]
[1731327907325,0.251,81844.0,81843.0,0.123185]
[1731327908551,0.001,81844.0,81843.0,0.125185]
[1731327908759,0.001,81844.0,81843.0,0.23869342]
[1731327908937,0.001,81844.0,81843.0,0.26613704]
[1731327909191,0.002,81844.0,81843.0,0.5325267]
[1731327909459,0.001688,81852.0,81851.0,0.134173]
[1731327909688,0.001688,81860.0,81859.0,0.007]
[1731327909927,0.001688,81860.0,81859.0,0.61338142]
[1731327910158,0.001688,81860.0,81859.0,0.69025811]
[1731327910821,0.002688,81860.0,81859.0,0.69125811]
[1731327911265,0.001688,81860.0,81859.0,0.69025811]
[1731327911486,0.001688,81860.0,81859.0,0.77150022]
[1731327911675,0.002688,81860.0,81859.0,0.77250022]
[1731327912103,0.002688,81860.0,81859.0,0.71862353]
[1731327912320,0.001688,81860.0,81859.0,0.71762353]
[1731327912921,0.18334607,81885.0,81874.0,0.292838]
[1731327913089,0.18334607,81885.0,81874.0,0.48560583]
[1731327913304,0.18334607,81885.0,81884.0,0.122123]
[1731327913675,0.001688,81888.0,81884.0,0.122123]
[1731327913676,0.001688,81888.0,81887.0,0.122119]
[1731327914088,0.001688,81888.0,81887.0,0.17475807]
[1731327914269,0.001688,81888.0,81887.0,0.16666151]
[1731327914903,0.002688,81888.0,81887.0,0.29860372]
[1731327915201,0.002688,81888.0,81887.0,0.41916152]
[1731327915373,0.001688,81888.0,81887.0,0.42316152]
[1731327915587,0.001688,81888.0,81887.0,0.67743973]
[1731327916019,0.001688,81888.0,81887.0,0.67943973]
[1731327916239,0.001688,81888.0,81887.0,0.66943973]
[1731327916457,0.001688,81888.0,81887.0,0.37206121]
[1731327916681,0.002688,81888.0,81887.0,0.152119]
[1731327916897,0.002688,81888.0,81887.0,0.129119]
[1731327917150,0.002688,81888.0,81887.0,0.007]
[1731327917584,0.002688,81888.0,81887.0,0.001]
[1731327917585,0.001688,81888.0,81887.0,0.001]
[1731327917824,0.001688,81888.0,81887.0,0.1344314]
[1731327918050,0.001688,81888.0,81887.0,0.122119]
[1731327918284,0.002688,81888.0,81887.0,0.128119]
[1731327918520,0.001688,81888.0,81887.0,0.122119]
[1731327918920,0.001688,81888.0,81887.0,0.132119]
[1731327919363,0.001688,81888.0,81887.0,0.127119]
[1731327919805,0.001688,81888.0,81887.0,0.31819791]
[1731327920282,0.001688,81888.0,81887.0,0.31319791]
[1731327920491,0.001688,81888.0,81887.0,0.150119]